bitfinex-derivatives/quotes_SOLF0:USTF0_20250820
["timestamp","ask_amount","ask_price","bid_price","bid_amount"]
[1755653047276,0.03638512,178.55,178.5,5.6024]
[1755653047477,0.03638512,178.55,178.51,0.06]
[1755653048278,0.03638512,178.55,178.49,6.79651655]
[1755653048279,2.92638512,178.55,178.49,6.79651655]
[1755653048681,2.92638512,178.55,178.47,0.06]
[1755653049181,0.03638512,178.55,178.47,0.06]
[1755653049778,0.03638512,178.55,178.48,5.6029]
[1755653050081,0.03638512,178.55,178.47,0.06]
[1755653050784,0.03638512,178.55,178.49,5.6025]
[1755653051179,0.03638512,178.55,178.47,0.06]
[1755653051582,0.03638512,178.55,178.49,5.6027]
[1755653051978,0.03638512,178.55,178.5,0.06]
[1755653052184,0.03638512,178.55,178.52,0.06]
[1755653052479,0.03638512,178.55,178.49,6.79651655]
[1755653052684,0.03638512,178.55,178.54,0.06]
[1755653053785,2.89,178.62,178.54,0.06]
[1755653055388,2.89,178.62,178.56,5.6003]
[1755653055585,2.89,178.62,178.54,0.06]
[1755653056287,2.89,178.62,178.51,351.90581019]
[1755653056483,2.89,178.62,178.53,5.6015]
[1755653056986,2.89,178.62,178.51,351.90581019]
[1755653057387,2.99019017,178.61,178.51,351.90581019]
[1755653057583,5.88019017,178.6,178.51,351.90581019]
[1755653057790,2.89,178.6,178.51,351.90581019]
[1755653058691,2.89,178.6,178.51,351.96581019]
[1755653059187,2.89,178.6,178.54,5.6009]
[1755653060589,2.89,178.7,178.53,6.79651655]
[1755653060791,2.89,178.68,178.53,6.79651655]
[1755653060991,2.89,178.66,178.55,5.6006]
[1755653061187,2.9942195,178.65,178.55,5.6006]
[1755653061387,5.8842195,178.64,178.55,5.6006]
[1755653061588,2.89,178.62,178.53,6.79651655]
[1755653061792,2.9942195,178.61,178.52,0.06]
[1755653061992,2.89,178.6,178.52,0.06]
[1755653062291,2.99726523,178.59,178.51,211.46581019]
[1755653062490,2.89,178.58,178.51,211.46581019]
[1755653064689,3.00064331,178.57,178.48,140.42]
[1755653064891,2.89,178.56,178.48,140.42]
[1755653067691,2.89,178.53,178.5,0.03584244]
[1755653067888,0.04207128,178.54,178.5,0.03584244]
[1755653067889,2.89,178.52,178.5,0.03584244]
[1755653068192,2.89,178.52,178.48,140.42]
[1755653070994,6.79651655,178.64,178.48,140.42]
[1755653071294,5.99659466,178.63,178.48,140.47]
[1755653071593,2.99,178.61,178.48,140.47]
[1755653071793,2.99,178.59,178.48,140.47]
[1755653071994,3.00659466,178.58,178.48,140.47]
[1755653072293,6.79651655,178.64,178.48,140.47]
[1755653072294,5.99659466,178.57,178.48,140.47]
[1755653072493,2.99,178.57,178.48,140.47]
[1755653072794,2.99,178.57,178.48,146.0728]
[1755653072996,2.99,178.57,178.48,140.47]
[1755653073297,2.99,178.57,178.48,146.0729]
[1755653073497,2.99,178.57,178.49,0.05]
[1755653073997,2.99,178.57,178.5,5.6024]
[1755653074998,2.99,178.63,178.51,5.652]
[1755653075200,3.00759169,178.62,178.51,0.05]
[1755653075498,5.99759169,178.61,178.51,0.05]
[1755653075695,3.00749724,178.6,178.51,0.05]
[1755653075895,3.00749724,178.59,178.51,0.05]
[1755653076099,2.99,178.57,178.48,0.05]
[1755653079001,2.99,178.57,178.47,140.12]
[1755653080598,2.99,178.55,178.47,140.12]
[1755653081503,3.01164269,178.54,178.45,5.6539]
[1755653081705,3.01164269,178.53,178.45,0.05]
[1755653081899,3.01164269,178.52,178.45,0.05]
[1755653082105,2.99,178.6,178.5,0.05]
[1755653084708,2.99,178.6,178.47,145.5633]
[1755653084709,2.99,178.6,178.47,140.01]
[1755653089515,2.99,178.58,178.44,215.60843459]
[1755653089715,2.99,178.54,178.44,215.60843459]
[1755653090714,2.99,178.54,178.38,0.05]
[1755653091416,2.99,178.5,178.36,140.1]
[1755653094111,2.99740971,178.49,178.36,140.1]
[1755653094316,5.98740971,178.48,178.36,140.1]
[1755653094614,2.99,178.46,178.36,140.1]
[1755653094816,2.99740971,178.45,178.36,140.1]
[1755653095011,2.99740971,178.44,178.36,140.1]
[1755653095211,2.99,178.46,178.36,140.1]
[1755653095412,2.99476108,178.45,178.36,140.1]
[1755653095611,5.98301637,178.44,178.34,0.05]
[1755653095810,2.99,178.44,178.34,0.05]
[1755653099820,2.99,178.44,178.33,0.08]
[1755653100523,3.0,178.5,178.36,0.08]
[1755653100822,3.0,178.5,178.37,0.08]
[1755653101727,9.79651655,178.5,178.37,0.08]
[1755653101922,6.79651655,178.5,178.37,0.08]
[1755653102126,3.0,178.49,178.37,0.08]
[1755653102824,6.79651655,178.46,178.33,0.08]
[1755653103024,3.0,178.45,178.33,0.08]
[1755653107631,3.0,178.45,178.31,139.92]
[1755653107933,3.0,178.41,178.29,0.08]
[1755653110032,3.0,178.41,178.26,0.08]
[1755653110331,3.0,178.37,178.26,0.08]
[1755653111731,3.0,178.37,178.22,0.08]
[1755653111933,3.0,178.33,178.22,0.08]
[1755653112333,3.0,178.33,178.2,340.93281958]
[1755653112534,3.0,178.29,178.18,0.08]
[1755653115541,9.79651655,178.29,178.18,0.08]
[1755653115736,6.79651655,178.29,178.18,0.08]
[1755653115935,3.0,178.28,178.18,0.08]
[1755653117447,6.79651655,178.33,178.18,0.08]
[1755653117448,3.0,178.31,178.18,0.08]
[1755653117642,3.0,178.31,178.19,0.08]
[1755653117939,3.0,178.36,178.23,0.08]
[1755653118642,3.0,178.36,178.25,0.08]
[1755653120140,376.74,178.4,178.25,0.08]
[1755653120141,3.0,178.39,178.25,0.08]
[1755653121738,3.0,178.36,178.25,0.08]
[1755653122742,3.0,178.36,178.19,0.08]
[1755653123838,3.0,178.36,178.2,0.08]
[1755653126244,3.0,178.36,178.18,6.79651655]
[1755653126548,3.0,178.36,178.23,0.08]
[1755653126746,3.0,178.36,178.17,139.98]
[1755653126747,3.0,178.36,178.22,6.79651655]
[1755653126948,379.74,178.4,178.27,0.08]
[1755653127243,379.74,178.4,178.26,6.79651655]
[1755653127448,379.74,178.4,178.29,0.08]
[1755653128149,3.0,178.4,178.29,0.08]
[1755653128350,140.34,178.41,178.31,5.6081]
[1755653128553,140.34,178.41,178.32,0.07]
[1755653129057,140.34,178.41,178.32,5.6779]
[1755653129553,3.0,178.44,178.35,0.07]
[1755653129750,3.0,178.48,178.35,0.07]
[1755653129950,380.0,178.5,178.35,0.07]
[1755653130255,380.0,178.5,178.39,0.07]
[1755653133156,380.0,178.5,178.39,5.6758]
[1755653133356,380.0,178.5,178.39,0.07]
[1755653133556,3.0,178.49,178.39,0.07]
[1755653135154,3.0,178.49,178.35,0.07]
[1755653136059,3.0,178.49,178.35,5.677]
[1755653136256,3.0,178.49,178.36,0.07]
[1755653136754,3.0,178.49,178.39,0.07]
[1755653137259,140.5,178.52,178.39,0.07]
[1755653137760,140.5,178.52,178.41,5.6049]
[1755653137961,140.5,178.52,178.39,0.07]
[1755653138451,140.5,178.52,178.44,0.03764803]
[1755653138655,3.0,178.51,178.44,0.03764803]
[1755653141658,3.0,178.51,178.44,0.10764803]
[1755653141865,140.5,178.52,178.44,0.03764803]
[1755653142064,3.0,178.55,178.45,0.07]
[1755653142663,3.0,178.55,178.41,0.07]
[1755653142968,3.0,178.55,178.48,0.0361929]
[1755653145568,140.3,178.57,178.48,0.1061929]
[1755653145772,3.0,178.59,178.48,0.1061929]
[1755653145970,140.38,178.61,178.49,0.07]
[1755653146169,3.0,178.6,178.49,5.6725]
[1755653146369,3.0,178.6,178.49,0.07]
[1755653147068,3.0,178.6,178.49,5.6724]
[1755653147274,3.0,178.6,178.49,0.07]
[1755653147775,3.0,178.6,178.49,5.6725]
[1755653148274,3.0,178.6,178.49,0.07]
[1755653149177,3.0,178.6,178.5,5.6021]
[1755653149475,3.0,178.6,178.49,0.07]
[1755653149678,3.0,178.6,178.49,5.6726]
[1755653149976,3.0,178.6,178.49,0.07]
[1755653150176,3.0,178.6,178.46,6.79651655]
[1755653150177,3.0,178.6,178.5,5.6021]
[1755653150373,140.38,178.61,178.51,0.07]
[1755653150578,3.0,178.64,178.51,0.07]
[1755653150773,3.0,178.64,178.55,0.07]
[1755653151371,3.0,178.64,178.51,0.07]
[1755653156182,3.0,178.64,178.46,6.79651655]
[1755653156183,9.79651655,178.64,178.46,6.79651655]
[1755653156375,3.0,178.63,178.47,0.07]
[1755653157080,6.79651655,178.6,178.47,0.07]
[1755653157283,3.0,178.59,178.47,0.07]
[1755653157983,3.0,178.59,178.47,5.6732]
[1755653158384,3.0,178.59,178.47,0.07]
[1755653160288,3.0,178.59,178.42,6.79651655]
[1755653160586,3.0,178.59,178.43,0.06]
[1755653160776,3.06,178.55,178.43,0.06]
[1755653165687,6.79651655,178.52,178.39,215.00200276]
[1755653165881,3.06,178.51,178.39,215.00200276]
[1755653168977,3.06,178.47,178.35,0.06]
[1755653169184,6.79651655,178.44,178.32,0.06]
[1755653169488,3.06,178.43,178.32,0.06]
[1755653170280,3.06,178.43,178.3,140.08]
[1755653170583,3.06,178.43,178.29,0.06]
[1755653171887,3.06,178.39,178.29,0.06]
[1755653177998,3.06,178.44,178.29,0.06]
[1755653178494,3.06,178.44,178.33,0.06]
[1755653179497,140.22,178.45,178.34,0.06]
[1755653180100,3.06,178.44,178.34,0.06]
[1755653182603,140.22,178.45,178.36,0.06]
[1755653183497,3.06,178.44,178.36,0.06]
[1755653185912,379.6,178.48,178.36,0.06]
[1755653186308,376.54,178.48,178.36,0.06]
[1755653186609,3.06,178.47,178.36,0.06]
[1755653189813,3.07,178.45,178.32,0.08]
[1755653190812,3.07,178.45,178.33,0.08]
[1755653194315,3.07,178.45,178.33,4.48039222]
[1755653195519,3.07,178.45,178.34,0.08]
[1755653196520,3.07,178.45,178.37,0.08]
[1755653197219,3.07,178.45,178.36,4.40039222]
[1755653197423,3.07,178.45,178.33,0.08]
[1755653197723,3.07,178.42,178.33,0.08]
[1755653199325,3.07,178.42,178.29,4.40039222]
[1755653199326,3.07,178.42,178.29,4.48039222]
[1755653199522,4.40039222,178.4,178.29,4.48039222]
[1755653199827,3.07,178.39,178.29,4.48039222]
[1755653200124,3.07,178.39,178.29,0.08]
[1755653201131,3.07,178.39,178.3,5.6085]
[1755653201431,3.07,178.39,178.31,0.08]
[1755653202531,3.07,178.39,178.26,4.40039222]
[1755653202834,3.07,178.39,178.28,0.08]
[1755653205134,3.07,178.39,178.28,5.6889]
[1755653205433,3.07,178.39,178.29,0.08]
[1755653210239,3.07,178.39,178.26,4.40039222]
[1755653210432,4.40039222,178.4,178.25,215.29050639]
[1755653210433,3.07,178.36,178.25,215.29050639]
[1755653210634,3.07,178.33,178.22,140.08]
[1755653212033,3.07,178.33,178.22,0.08]
[1755653212233,3.07,178.3,178.18,0.08]
[1755653212735,3.07,178.3,178.15,5.6133]
[1755653212736,3.07,178.3,178.15,0.08]
[1755653212936,3.07,178.27,178.15,0.08]
[1755653213336,139.94,178.31,178.09,517.75502206]
[1755653213337,3.07,178.23,178.11,0.08]
[1755653213730,3.1083099,178.23,178.19,0.03916871]
[1755653213942,3.07,178.21,178.11,0.08]
[1755653214639,3.07,178.25,178.11,0.08]
[1755653215836,3.07,178.25,178.12,5.6142]
[1755653216041,3.07,178.25,178.13,0.08]
[1755653218638,3.07,178.25,178.15,5.6133]
[1755653218839,3.07,178.25,178.16,0.07]
[1755653220442,500.86,178.35,178.16,0.07]
[1755653220443,2.94,178.3,178.16,0.07]
[1755653220836,9.79814293,178.3,178.16,0.07]
[1755653221141,2.94,178.29,178.16,0.07]
[1755653222841,2.94,178.33,178.21,5.6114]
[1755653223041,2.94,178.33,178.22,0.07]
[1755653225240,2.94,178.33,178.18,6.92814293]
[1755653225447,2.94,178.33,178.19,0.07]
[1755653226446,2.94,178.31,178.13,5.6136]
[1755653226651,2.94,178.27,178.09,1.04502206]
[1755653226845,2.94,178.23,178.09,0.07]
[1755653227043,2.94,178.23,178.09,5.685]
[1755653227239,2.94,178.23,178.09,5.615]
[1755653227545,2.94,178.23,178.1,0.07]
[1755653230248,2.94,178.19,178.05,0.07]
[1755653231348,2.94,178.19,178.06,5.6161]
[1755653231646,2.94,178.19,178.07,0.07]
[1755653231849,2.94,178.23,178.09,5.6149]
[1755653232040,2.94,178.23,178.1,0.07]
[1755653233951,2.94,178.23,178.11,0.07]
[1755653238445,2.94,178.23,178.13,0.07]
[1755653240650,140.82,178.26,178.09,0.07]
[1755653240955,140.82,178.26,178.13,0.07]
[1755653241151,140.82,178.26,178.14,5.6135]
[1755653241355,2.94,178.25,178.13,0.07]
[1755653241958,2.94,178.23,178.07,0.07]
[1755653243958,2.94,178.21,178.07,0.07]
[1755653244558,6.85814293,178.18,178.07,0.07]
[1755653244855,2.94,178.17,178.03,210.66417272]
[1755653246156,2.94,178.17,178.03,210.59417272]
[1755653246352,2.94,178.17,178.06,5.6159]
[1755653246549,2.94,178.17,178.07,0.07]
[1755653246956,2.94,178.17,178.07,5.6857]
[1755653247157,2.94,178.17,178.07,0.07]
[1755653247361,2.94,178.21,178.08,6.85814293]
[1755653247663,2.94,178.21,178.13,0.07]
[1755653248053,2.94,178.21,178.03,211.57138514]
[1755653248254,6.85814293,178.18,178.07,0.07]
[1755653248460,2.97,178.17,178.03,210.66417272]
[1755653249053,2.97,178.17,178.04,0.07]
[1755653249361,2.97,178.17,178.08,0.03571152]
[1755653256964,394.15,178.24,178.08,0.03571152]
[1755653256965,6.85814293,178.14,178.08,0.03571152]
[1755653257170,2.97,178.12,178.08,0.03571152]
[1755653257360,2.97,178.11,178.03,210.66417272]
[1755653258069,2.97,178.11,178.03,210.59417272]
[1755653262577,2.97,178.09,178.03,210.59417272]
[1755653262870,2.97,178.09,177.98,0.07]
[1755653263374,2.97,178.09,177.96,141.12]
[1755653263574,2.97,178.09,177.97,0.07]
[1755653264081,2.97,178.09,177.99,0.07]
[1755653264377,2.97,178.09,177.99,5.6881]
[1755653264577,2.97,178.09,178.0,0.07]
[1755653264979,2.97,178.13,178.0,0.07]
[1755653265481,2.97,178.13,178.02,5.6172]
[1755653265777,2.97,178.13,178.03,0.07]
[1755653266973,2.97,178.13,178.03,5.6869]
[1755653267182,2.97,178.13,178.04,0.07]
[1755653267372,144.01,178.17,178.04,0.07]
[1755653268380,141.04,178.17,178.04,0.07]
[1755653268579,2.97,178.16,178.04,0.07]
[1755653268781,2.97,178.14,178.0,0.07]
[1755653269580,2.97,178.14,177.98,0.07]
[1755653269778,9.82814293,178.14,177.98,0.07]
[1755653270181,2.97,178.13,177.98,0.07]
[1755653271182,2.97,178.09,177.98,0.07]
[1755653272388,2.97,178.09,177.93,217.4598347]
[1755653273084,2.97,178.09,177.94,0.07]
[1755653275584,2.97,178.09,177.94,5.6198]
[1755653275785,2.97,178.09,177.95,0.07]
[1755653276786,2.97,178.09,177.95,5.6195]
[1755653276982,2.97,178.09,177.96,0.07]
[1755653277488,2.97,178.09,177.98,0.07]
[1755653280784,6.85814293,178.08,177.94,0.07]
[1755653280993,3.1,178.07,177.91,0.07]
[1755653281190,3.1,178.03,177.91,0.07]
[1755653281888,3.1,178.03,177.92,0.07]
[1755653282490,3.1,178.03,177.88,0.07]
[1755653285993,3.1,178.03,177.9,0.07]
[1755653288594,3.1,178.03,177.9,5.6209]
[1755653288891,3.1,178.03,177.91,0.07]
[1755653297994,3.1,178.03,177.94,5.6196]
[1755653298303,3.1,178.03,177.95,0.07]
[1755653298701,3.1,178.07,177.95,5.6892]
[1755653298908,3.1,178.07,177.96,0.07]
[1755653299097,3.1,178.07,177.97,0.07]
[1755653299705,3.1,178.07,177.98,5.6184]
[1755653299901,3.1,178.07,177.99,0.07]
[1755653300503,3.1,178.07,177.93,0.07]
[1755653302007,3.1,178.07,177.96,0.07]
[1755653302503,3.1,178.07,177.97,5.6188]
[1755653302707,3.1,178.07,177.98,0.07]
[1755653303107,3.1,178.07,177.98,5.6185]
[1755653303308,3.1,178.07,177.99,0.07]
[1755653304704,380.64,178.11,178.0,0.07]
[1755653305308,380.64,178.11,178.0,5.6877]
[1755653305607,380.64,178.11,178.0,0.07]
[1755653305803,3.1,178.11,178.03,0.07]
[1755653306108,3.1,178.15,178.03,0.07]
[1755653306313,3.1,178.15,178.08,0.07]
[1755653306505,0.04211184,178.11,178.08,0.07]
[1755653306802,3.14211184,178.11,178.07,0.04061797]
[1755653307006,3.1,178.11,178.05,0.07]
[1755653309211,3.1,178.11,177.99,6.85814293]
[1755653309410,3.1,178.11,178.01,0.07]
[1755653310011,3.1,178.11,178.01,5.6876]
[1755653310206,3.1,178.11,178.01,0.07]
[1755653310710,3.1,178.11,178.02,5.6171]
[1755653310913,3.1,178.11,178.03,0.07]
[1755653312415,3.1,178.11,177.99,0.07]
[1755653318218,3.1,178.11,177.99,5.6882]
[1755653319620,3.1,178.11,178.01,0.07]
[1755653319818,3.1,178.11,178.01,6.85814293]
[1755653320014,3.04,178.15,178.05,6.85814293]
[1755653320214,3.04,178.15,178.06,0.07]
[1755653322322,3.04,178.15,178.07,0.07]
[1755653322523,3.04,178.15,177.99,0.07]
[1755653322724,3.04,178.15,178.02,0.07]
[1755653323125,3.04,178.15,178.03,5.6167]
[1755653323320,3.04,178.15,178.04,0.07]
[1755653327929,3.04,178.15,178.06,0.07]
[1755653328625,3.04,178.15,178.02,0.07]
[1755653331232,9.89814293,178.15,178.02,0.07]
[1755653331731,3.04,178.14,178.02,0.07]
[1755653332633,3.04,178.14,177.98,0.06]
[1755653334028,3.04,178.14,177.98,5.6785]
[1755653334234,3.04,178.14,177.99,0.06]
[1755653337637,3.04,178.14,177.99,5.6782]
[1755653337838,3.04,178.14,178.0,6.91814293]
[1755653338037,3.04,178.14,178.01,0.06]
[1755653338236,3.04,178.14,178.01,0.07]
[1755653338938,3.04,178.14,178.03,0.07]
[1755653343946,3.04,178.14,178.05,0.07]
[1755653346744,7.45476425,178.14,178.01,0.07]
[1755653346945,3.06,178.13,178.01,0.07]
[1755653347445,3.06,178.13,178.04,0.07]
[1755653350453,3.06,178.13,178.01,0.07]
[1755653351556,3.06,178.12,178.01,0.07]
[1755653352962,0.97752809,178.13,177.97,215.24418147]
[1755653352963,3.06,178.1,177.97,215.24418147]
[1755653355465,3.06,178.07,177.97,215.24418147]
[1755653359061,3.06,178.04,177.93,0.07]
[1755653359264,3.06,178.01,177.93,0.07]
[1755653361962,3.06,178.04,177.93,0.07]
[1755653364367,3.06,178.01,177.89,4.48476425]
[1755653366168,3.06,178.01,177.89,0.07]
[1755653366670,3.06,177.98,177.85,4.48476425]
[1755653366969,3.06,177.95,177.85,0.07]
[1755653368970,3.06,177.95,177.86,0.08]
[1755653369471,3.06,177.95,177.87,0.08]
[1755653369771,4.41476425,178.0,177.88,0.08]
[1755653369972,2.91,177.99,177.9,0.08]
[1755653370566,2.91,177.99,177.86,4.41476425]
[1755653370763,2.91,177.99,177.86,4.49476425]
[1755653371271,2.91,177.99,177.87,0.08]
[1755653371873,2.91,177.99,177.87,5.7018]
[1755653372074,2.91,177.99,177.88,0.08]
[1755653372371,2.91,177.99,177.89,0.08]
[1755653376176,2.91,177.99,177.85,4.41476425]
[1755653376374,2.91,177.96,177.86,0.08]
[1755653382375,2.91,177.94,177.86,0.08]
[1755653382772,2.91,177.94,177.83,357.26855935]
[1755653383083,2.91,177.94,177.84,0.08]
[1755653384082,4.41476425,177.92,177.83,357.26855935]
[1755653384285,2.91,177.91,177.83,216.50855935]
[1755653385284,2.91,177.91,177.83,216.58855935]
[1755653385889,4.41476425,177.95,177.83,216.58855935]
[1755653385890,7.32476425,177.95,177.84,0.08]
[1755653386187,2.83371891,177.94,177.84,0.08]
[1755653386487,7.32476425,177.95,177.84,5.703]
[1755653386689,7.32476425,177.95,177.84,0.08]
[1755653388488,7.32476425,177.95,177.84,5.7029]
[1755653388791,7.32476425,177.95,177.84,0.08]
[1755653389290,2.91,177.95,177.84,0.08]
[1755653390385,2.83625147,177.94,177.84,0.08]
[1755653390693,2.91,177.93,177.84,0.08]
[1755653391988,2.91,177.93,177.85,0.08]
[1755653393088,2.91,177.98,177.87,0.08]
[1755653393290,2.83744475,177.97,177.87,0.08]
[1755653393491,2.91,177.98,177.87,0.08]
[1755653393693,2.83860046,177.97,177.87,0.08]
[1755653393995,2.91,177.98,177.87,0.08]
[1755653394193,2.83835293,177.97,177.87,5.7018]
[1755653394395,2.83835293,177.96,177.87,5.7018]
[1755653394598,2.91,177.98,177.87,5.7018]
[1755653394794,2.840094,177.97,177.89,0.08]
[1755653394999,2.91,177.98,177.89,0.08]
[1755653395000,2.91,177.98,177.91,4.41476425]
[1755653395191,2.91,177.98,177.92,0.08]
[1755653395398,2.91,178.01,177.92,0.08]
[1755653395696,2.84287893,178.0,177.92,0.08]
[1755653395993,2.91,178.01,177.92,0.08]
[1755653396195,2.84273492,178.0,177.92,0.08]
[1755653396399,2.84273492,177.99,177.92,0.08]
[1755653396601,2.91,178.01,177.92,0.08]
[1755653396797,2.8440262,178.0,177.92,0.08]
[1755653396997,2.84402924,177.99,177.92,0.08]
[1755653397195,2.91,178.01,177.92,0.08]
[1755653397396,2.8456205,178.0,177.92,0.08]
[1755653397597,2.91,178.01,177.92,0.08]
[1755653397799,2.84590978,178.0,177.92,0.08]
[1755653397996,2.91,178.01,177.92,0.08]
[1755653398199,2.84604334,178.0,177.92,0.08]
[1755653398501,2.91,178.01,177.92,0.08]
[1755653398700,2.84671882,178.0,177.92,0.08]
[1755653398900,2.84671882,177.99,177.92,0.08]
[1755653399102,2.91,178.01,177.92,0.08]
[1755653399300,2.84645536,178.0,177.92,0.08]
[1755653399502,2.84645536,177.99,177.92,0.08]
[1755653399803,2.91,178.01,177.92,0.08]
[1755653400005,2.84730042,178.0,177.92,0.08]
[1755653400205,2.86,178.09,177.97,4.41476425]
[1755653400400,2.84899904,178.08,178.01,0.07]
[1755653400600,2.84899904,178.07,178.04,0.07]
[1755653400801,2.84899904,178.06,178.03,4.41476425]
[1755653401005,2.86,178.1,178.03,4.48476425]
[1755653401198,0.97752809,178.13,177.92,6.24950624]
[1755653401199,2.85086089,178.09,178.0,4.41476425]
[1755653401396,5.71086089,178.08,178.0,4.41476425]
[1755653401599,2.85086089,178.07,178.03,4.41476425]
[1755653401802,2.86,178.12,178.0,4.48476425]
[1755653402003,2.86,178.1,178.0,4.48476425]
[1755653402205,2.86,178.08,178.0,4.48476425]
[1755653403599,4.41476425,178.04,177.91,4.41476425]
[1755653403897,2.86,178.02,177.91,4.41476425]
[1755653404098,4.41476425,178.01,177.9,0.07]
[1755653404300,2.86,178.0,177.9,0.07]
[1755653406712,2.76636643,177.99,177.9,0.07]
[1755653406915,2.86,178.0,177.9,0.07]
[1755653407115,2.76564295,177.99,177.9,0.07]
[1755653407418,2.86,178.0,177.9,0.07]
[1755653407621,2.76637907,177.99,177.9,0.07]
[1755653407917,2.86,178.0,177.9,0.07]
[1755653408119,2.76700887,177.99,177.9,0.07]
[1755653408320,2.86,178.0,177.9,0.07]
[1755653408522,2.86,177.98,177.9,0.07]
[1755653408915,2.86,177.98,177.88,141.16]
[1755653410323,2.76432867,177.97,177.88,141.16]
[1755653410521,2.86,177.98,177.88,141.16]
[1755653411224,2.86,177.98,177.88,141.23]
[1755653412226,2.86,177.98,177.88,146.8515]
[1755653412425,2.86,177.98,177.89,0.07]
[1755653413521,2.86,178.02,177.9,0.07]
[1755653413919,2.86,178.02,177.93,5.6901]
[1755653414122,2.86,178.02,177.93,0.07]
[1755653415626,2.86,178.02,177.93,5.6901]
[1755653415831,2.86,178.02,177.93,0.07]
[1755653416124,2.86,178.06,177.93,0.07]
[1755653416320,2.76718252,178.05,177.95,0.07]
[1755653416521,2.86,178.06,177.97,0.07]
[1755653416930,2.86,178.06,177.97,5.6887]
[1755653417223,2.86,178.06,177.97,0.07]
[1755653418031,7.20322062,178.13,177.97,0.07]
[1755653418032,2.86,178.1,177.97,0.07]
[1755653418327,2.86,178.1,177.98,5.6185]
[1755653418523,2.76265947,178.09,177.99,0.07]
[1755653418832,2.86,178.08,177.99,0.07]
[1755653420817,2.86,178.08,177.96,141.16]
[1755653421427,2.7590975,178.07,177.96,141.16]
[1755653421621,2.86,178.08,177.96,141.16]
[1755653421821,2.86,178.06,177.96,141.16]
[1755653422019,2.86,178.06,178.0,0.03957581]
[1755653425339,2.86,178.09,178.0,0.10957581]
[1755653425638,2.86,178.09,178.0,0.03957581]
[1755653425933,2.86,178.09,178.01,0.07]
[1755653426438,2.86,178.09,177.96,141.16]
[1755653426439,2.86,178.13,178.04,0.07]
[1755653428139,2.86,178.13,178.04,5.6866]
[1755653428337,5.3923446,178.17,178.04,5.6866]
[1755653428338,3.94737709,178.17,178.05,0.07]
[1755653428534,2.97,178.17,178.08,6.86496956]
[1755653428735,2.97,178.17,178.09,0.07]
[1755653429230,2.97,178.17,178.09,5.685]
[1755653429629,2.97,178.22,178.09,0.07]